Cogmind - Beta 14 *** ADVENTURER MODE // 2025.03.11 @ 23:31:12 Player: EN-G1N Result: Destroyed by 3T-Q3X(R) with Subdweller Beam Cannon Performance ------------- Evolutions (0) 0 Regions Visited (3) 600 Robots Destroyed (23) 115 Value Destroyed (391) 391 Prototype IDs (0) 0 Alien Tech Used (0) 0 Bonus (14) 14 TOTAL SCORE: 1120 Bonus ------- Follower Combat Kills 14 Cogmind --------- Core Integrity 0/250 Matter 275/300 Energy 215/250 System Corruption 0% Temperature Cool (9) Movement Treading (160) Location -10/Subcaves Parts ------- > --- POWER (1) -------- Ion Engine > --- PROPULSION (2) --- Light Treads Light Treads > --- UTILITY (2) ------ Improved Heat Sink Large Storage Unit > --- WEAPON (2) ------- Medium Laser Particle Gun > --- INVENTORY (15) --- Light Ion Engine Heat Sink Large Matter Pod (150) Compact Matter Pod (150) Sensor Array Signal Interpreter Signal Interpreter Signal Interpreter Improved Terrain Scanner ECM Suite Light Assault Rifle Mining Laser Peak State ------------ > --- POWER ------------ Light Nuclear Core > --- PROPULSION ------- Light Treads Light Treads > --- UTILITY ---------- Large Storage Unit Improved Terrain Scanner > --- WEAPON ----------- Particle Gun Light Assault Rifle > --- INVENTORY -------- Ion Engine Light Ion Engine Light Treads Heat Sink Large Matter Pod Compact Matter Pod Sensor Array Signal Interpreter Signal Interpreter Signal Interpreter ECM Suite Medium Laser Grenade Launcher Mining Laser [Rating: 13] Favorites ----------- Power Ion Engine Engine Ion Engine Power Core Light Nuclear Core Propulsion Light Treads Treads Light Treads Utility Large Storage Unit Device Improved Terrain Scanner Storage Large Storage Unit Weapon Light Assault Rifle Energy Gun Particle Gun Ballistic Gun Light Assault Rifle Launcher Grenade Launcher Build | -11 -10 -10 -10 ------- Run | Yrd Mat Min Sub Slots Evolved . | . . . . Power . | . . . . Propulsion . | . . . . Utility . | . . . . Weapon . | . . . . Parts Attached 19 | 7 5 5 2 Power 3 | 1 . 1 1 Engine 2 | 1 . . 1 Core 1 | . . 1 . Reactor . | . . . . Propulsion 4 | 2 1 1 . Treads 4 | 2 1 1 . Leg . | . . . . Wheel . | . . . . Hover . | . . . . Flight . | . . . . Utility 5 | 2 2 1 . Device 3 | 1 1 1 . Storage 2 | 1 1 . . Processor . | . . . . Hackware . | . . . . Protection . | . . . . Artifact . | . . . . Weapon 7 | 2 2 2 1 Energy Gun 5 | 1 2 1 1 Energy Cannon . | . . . . Ballistic Gun 1 | 1 . . . Ballistic Cannon . | . . . . Launcher 1 | . . 1 . Special Weapon . | . . . . Impact Weapon . | . . . . Slashing Weapon . | . . . . Piercing Weapon . | . . . . Special Melee Weapon . | . . . . Unidentified Prototypes . | . . . . Parts Lost 4 | . 1 3 . Power 1 | . . 1 . Propulsion 1 | . . 1 . Utility 1 | . 1 . . Weapon 1 | . . 1 . Highest Loss Streak 3 | . 1 3 . To Critical Strikes . | . . . . Average Slot Usage (%) 94 | . 91 98 100 Engine 9 | . 14 3 14 Core 3 | . . 9 . Treads 27 | . 28 27 28 Device 9 | . 6 14 14 Storage 14 | . 14 14 14 Energy Gun 15 | . 14 17 28 Ballistic Gun 11 | . 14 8 . Peak Build Rating 13 | 7 11 13 11 Average Rating 9 | 4 7 12 10 On Entrance 6 | . 7 11 8 Naked Turns . | . . . . Heaviest Build 31 | 14 30 31 31 Greatest Support 40 | 40 40 40 40 Greatest Overweight (x) 1 | . . 1 . Average Overweight (x) . | . . . . Largest Inventory Capacity 15 | 8 15 15 15 Average Capacity 14 | 7 14 15 15 Most Carried 15 | 4 13 15 13 Average Carried 10 | 1 8 14 12 Final Capacity 15 | 8 15 15 15 Final Carried 14 | 2 13 14 12 Class Distribution -------------------- 100% | Mutant Dominant Class ---------------- Mutant | -10/Materials Mutant | -10/Mines Mutant | -10/Subcaves Resources | -11 -10 -10 -10 ----------- Run | Yrd Mat Min Sub Matter Collected 730 | 275 127 328 . Remotely . | . . . . Salvage Created 630 | 142 268 220 . Parts 43 | 9 20 14 . Haulers Intercepted . | . . . . Recyclers Shooed 1 | . 1 . . Parts Field Recycled . | . . . . Retrieved Matter . | . . . . Parts Self-Destructed . | . . . . Prevented . | . . . . Kills | -11 -10 -10 -10 ------- Run | Yrd Mat Min Sub Combat Hostiles Destroyed 24 | . 10 14 . Guns 15 | . 10 5 . AOE 9 | . . 9 . Classes Destroyed 7 | 2 4 1 . Worker 2 | . 1 1 . Tunneler 3 | 2 . 1 . Recycler 2 | 1 . 1 . Watcher 1 | . 1 . . Swarmer 9 | . 6 3 . Grunt 6 | . 4 2 . Assembled 9 | . . 9 . Best Kill Streak 10 | 2 4 10 . Combat Bots Only 9 | . 3 9 . Max Kills in Single Turn 3 | 1 1 3 . Gunslinging . | . . . . Exploded 3 | . . 3 . Melee . | . . . . Uniques/NPCs Destroyed . | . . . . Combat | -11 -10 -10 -10 -------- Run | Yrd Mat Min Sub Hostile Shots Fired 108 | . 39 65 4 Missed 24 | . 8 15 1 Damage Taken 963 | . 233 673 57 Core 255 | . 46 170 39 Absorbed by Shields . | . . . . Ignored by Resistances 282 | . 74 193 15 Core Remaining (%) 100 | 100 . . . Volleys Fired 65 | 5 26 34 . Largest 2 | 2 2 2 . Hottest 85 | 60 85 85 . Shots Fired 130 | 10 52 68 . Gun 121 | 10 52 59 . Cannon . | . . . . Launcher 9 | . . 9 . Special . | . . . . Kinetic 56 | 5 26 25 . Thermal 60 | . 26 34 . Explosive 9 | . . 9 . Electromagnetic 5 | 5 . . . Robot Hit Streak 12 | 8 10 12 . Robot Miss Streak 2 | . 2 2 . Penetration Max . | . . . . Secondary Targets 1 | . 1 . . Max Gunslinging Chain 1 | . 1 . . Shots Hit Robots 84 | 8 36 40 . Core Hits 67 | 3 18 46 . Critical Kills . | . . . . Critical Parts Destroyed . | . . . . Critical Strikes 2 | . . 2 . Burn 2 | . . 2 . Melee Attacks . | . . . . Impact . | . . . . Slashing . | . . . . Piercing . | . . . . Sneak Attacks . | . . . . Combat Hostiles . | . . . . Follow-up Attacks . | . . . . Damage Inflicted 1645 | 89 509 1047 . Guns 1071 | 89 469 513 . Cannons . | . . . . Explosions 515 | . . 515 . Melee . | . . . . Ramming 59 | . 40 19 . Kinetic 295 | 22 137 136 . Thermal 709 | . 332 377 . Explosive 515 | . . 515 . Electromagnetic 67 | 67 . . . Impact . | . . . . Slashing . | . . . . Piercing . | . . . . Highest Corruption . | . . . . Average Corruption . | . . . . Corruption Purged . | . . . . Corruption Blocked . | . . . . Overload Shots . | . . . . Overflow Damage . | . . . . Projectiles . | . . . . Explosions . | . . . . Melee . | . . . . Knockbacks . | . . . . Impact . | . . . . Kinetic . | . . . . Secondary . | . . . . Self-Inflicted Damage . | . . . . Shots . | . . . . Rammed 6 | . 4 2 . Targets Rammed 8 | . 5 3 . Kicked . | . . . . Crushed 2 | . 1 1 . Highest Temperature 384 | 20 184 384 . Average Temperature 97 | 13 60 141 . Received Heat Transfer 209 | . 105 95 9 Effects 5 | . . 5 . Interference 3 | . . 3 . Matter Decay 1 | . . 1 . Damage (minor) 1 | . . 1 . Siege Activations . | . . . . Robots Corrupted . | . . . . Combat Hostiles . | . . . . Parts Fried . | . . . . Impact Corruptions . | . . . . Robots Melted . | . . . . Combat Hostiles . | . . . . Parts Melted 2 | . . 2 . Heat Transferred 1813 | . 777 1036 . Parts Sabotaged . | . . . . Parts Stolen . | . . . . Parts Stripped . | . . . . Power Chain Reactions . | . . . . Alert | -11 -10 -10 -10 ------- Run | Yrd Mat Min Sub Peak Influence 254 | 15 177 254 . Initial 58 | . 8 58 . Average 86 | 6 78 109 . Maximum Alert Level 1 | . . 1 . Low Security (%) 87 | 100 100 68 . Level 1 12 | . . 31 . Level 2 . | . . . . Level 3 . | . . . . Level 4 . | . . . . Level 5 . | . . . . High Security . | . . . . Max Security . | . . . . Squads Dispatched 2 | . 2 . . Investigation 2 | . 2 . . Extermination . | . . . . Reinforcement . | . . . . Assault . | . . . . Garrison . | . . . . Intercept . | . . . . Searches Triggered . | . . . . Construction Impeded . | . . . . Haulers Reinforced . | . . . . Active Scanning Responses . | . . . . Cargo Convoy Interrupts . | . . . . Stealth | -11 -10 -10 -10 --------- Run | Yrd Mat Min Sub Distress Signals . | . . . . Communications Jammed . | . . . . Distress Signals . | . . . . Times Spotted 50 | . 17 31 2 Peak Tracking Total 19 | . 4 19 2 Tactical Retreats 2 | . 1 1 . Traps | -11 -10 -10 -10 ------- Run | Yrd Mat Min Sub Traps Triggered 1 | . 1 . . Indirectly . | . . . . Trap Hack Attempts . | . . . . Triggered . | . . . . Disarmed . | . . . . Reprogrammed . | . . . . Reused . | . . . . Traps Extracted . | . . . . Installed . | . . . . Triggered . | . . . . Machines | -11 -10 -10 -10 ---------- Run | Yrd Mat Min Sub Machines Disabled 2 | . 1 1 . Max in Single Turn 1 | . 1 . . Machines Repaired . | . . . . Machines Dismantled . | . . . . Machines Sabotaged . | . . . . Overloaded Fab Kills . | . . . . Hacking | -11 -10 -10 -10 --------- Run | Yrd Mat Min Sub Machines Accessed 6 | . 6 . . Terminals 6 | . 6 . . Fabricators . | . . . . Repair Stations . | . . . . Recycling Units . | . . . . Scanalyzers . | . . . . Garrison Access . | . . . . Total Hacks 22 | . 22 . . Successful 13 | . 13 . . Failed 9 | . 9 . . Catastrophic . | . . . . Database Lockouts . | . . . . Manual 16 | . 16 . . Terminals 22 | . 22 . . Fabricators . | . . . . Repair Stations . | . . . . Recycling Units . | . . . . Scanalyzers . | . . . . Garrison Access . | . . . . Terminal Hacks 7 | . 7 . . Record 3 | . 3 . . Robot Analysis 2 | . 2 . . Emergency Access Points 1 | . 1 . . Maintenance Status 1 | . 1 . . Fabricator Hacks . | . . . . Repair Station Hacks . | . . . . Recycling Unit Hacks . | . . . . Scanalyzer . | . . . . Garrison Access Hacks . | . . . . Unauthorized Hacks 6 | . 6 . . Terminals 6 | . 6 . . Assimilate 1 | . 1 . . Botnet 5 | . 5 . . Fabricators . | . . . . Repair Stations . | . . . . Recycling Units . | . . . . Scanalyzers . | . . . . Garrison Access . | . . . . Data Cores Recovered . | . . . . Used . | . . . . Hacking Detections 4 | . 4 . . Full Trace Events 2 | . 2 . . Feedback Events . | . . . . Feedback Blocked . | . . . . Robot Schematics Acquired . | . . . . Robots Built . | . . . . Authchips . | . . . . Time . | . . . . Total Robot Build Rating . | . . . . Part Schematics Acquired . | . . . . Parts Built . | . . . . Authchips . | . . . . Time . | . . . . Total Part Build Rating . | . . . . Parts Repaired . | . . . . Time . | . . . . Parts Recycled . | . . . . Recycled Matter . | . . . . Retrieved Matter . | . . . . Retrieved Components . | . . . . Parts Scanalyzed . | . . . . Part Schematics Acquired . | . . . . Parts Damaged . | . . . . Bothacking | -11 -10 -10 -10 ------------ Run | Yrd Mat Min Sub Used RIF Installer . | . . . . Robots Hacked . | . . . . Non-combat . | . . . . Combat . | . . . . Robot Hacks Applied . | . . . . Relay Couplers Released . | . . . . Fabnet Peak Effective % . | . . . . Robots Rewired . | . . . . Allies Hacked . | . . . . Hacks Repelled . | . . . . Allies | -11 -10 -10 -10 -------- Run | Yrd Mat Min Sub Total Allies 5 | . . 5 . Largest Group 5 | . . 5 . Highest-Rated Group 85 | . . 85 . Highest-Rated Ally 31 | . . 31 . Total Orders . | . . . . Ally Attacks 44 | . . 44 . Total Damage 489 | . . 489 . Kills 8 | . . 8 . Allies Corrupted . | . . . . Allies Melted . | . . . . Intel | -11 -10 -10 -10 ------- Run | Yrd Mat Min Sub Robot Analysis Total 2 | . 2 . . Derelict Logs Recovered 1 | . . 1 . Drone Launches . | . . . . Drone Recoveries . | . . . . Exploration | -11 -10 -10 -10 ------------- Run | Yrd Mat Min Sub Turns Passed 1516 | 98 794 601 23 Spaces Moved 772 | 49 409 301 13 Core 13 | 13 . . . Treads 759 | 36 409 301 13 Legs . | . . . . Wheels . | . . . . Hover . | . . . . Flight . | . . . . Fastest Speed 50 | 50 160 160 160 Average Speed 158 | 130 160 161 160 Slowest Speed 240 | 160 160 240 160 Overloaded Moves . | . . . . Propulsion Burnouts . | . . . . Robots Hopped . | . . . . Cave-ins Triggered . | . . . . Exploration Rate (%) 33 | 4 73 54 4 Regions Visited 3 Branch Regions 2 Pre-discovered Areas 2 | . . 1 1 Known Exits Taken . | . . . . Unknown Exits Taken 3 | 1 1 1 . Scrap Searched 1 | . . 1 . Spaces Dug . | . . . . Terrain Destroyed 28 | . . 28 . Melee . | . . . . Projectile . | . . . . AOE 28 | . . 28 . Terrain Rammed . | . . . . Walls Destroyed . | . . . . Machines Disabled . | . . . . Actions | -11 -10 -10 -10 --------- Run | Yrd Mat Min Sub Total 939 | 74 498 352 15 Wait 49 | 5 40 4 . Move 769 | 48 408 300 13 Hop . | . . . . Pick Up 26 | 9 13 4 . Fast Attach . | . . . . Attach 12 | 7 2 1 2 Detach . | . . . . Swap 7 | . 3 4 . Drop 3 | . 1 2 . Fire 65 | 5 26 34 . Melee . | . . . . Ram . | . . . . Kick . | . . . . Crush 8 | . 5 3 . Escape Stasis . | . . . . Rewire . | . . . . Trap . | . . . . Miscellaneous . | . . . . Route ------- -11/Scrapyard -10/Materials (discovered 4 exits: [*Mat x2] / [*Min x2]) -10/Mines (discovered 2 exits: [*Mat] / [*Sub]) -10/Subcaves History --------- Turn | Location | Event 10 | -11/Scrapyard | Discovered new exit (range 16) 99 | -11/Scrapyard | Entered Materials 313 | -10/Materials | Build established: Mutant 346 | -10/Materials | Discovered new exit (range 9) 535 | -10/Materials | Discovered new exit (range 14) 601 | -10/Materials | Discovered new exit (range 15) 848 | -10/Materials | Discovered new exit (range 13) 893 | -10/Materials | Entered Mines 1142 | -10/Mines | Discovered new exit (range 12) 1167 | -10/Mines | Assisted by bots powering up and referring to "LRC-V3" 1218 | -10/Mines | Learned location of Storage (-8) 1413 | -10/Mines | Assembled infested the area 1465 | -10/Mines | Core integrity fell below 50% 1467 | -10/Mines | Destroyed 9 combat bots 1480 | -10/Mines | Discovered new exit (range 10) 1482 | -10/Mines | Core integrity fell below 20% 1485 | -10/Mines | Lost 5 allies 1494 | -10/Mines | Entered Subcaves 1509 | -10/Subcaves | Shifting Twisted Machinery released Sub. Machine Gun 1510 | -10/Subcaves | Learned location of Zion (-6) 1510 | -10/Subcaves | Met a Zionite searching for "candidates" 1510 | -10/Subcaves | Lost 3 parts (1p1n1w) 1515 | -10/Subcaves | Shifting Twisted Machinery released Piercing Trap 1517 | -10/Subcaves | Destroyed by 3T-Q3X(R) with Subdweller Beam Cannon Last Messages --------------- 01479_ T-07 Excavator is excavating. 01479_ Grenade Launcher destroyed. 01480_ EXIT=FOUND 01483_ The unstable cave ceiling collapses. 01483_ T-07 Excavator is excavating. 01494_ The unstable cave ceiling collapses. LOCATION=UNKNOWN AMBIENT_HEAT=-10 GOAL=ESCAPE 01496_ KL-WB0(z): "She is not going to be happy we haven't found any suitable candidates yet." Sub. Machine Gun falls loose from the Twisted Machinery. 01510_ KL-WB0(z): "Hey you! It's really dangerous down here, I feel that you could die at any moment. For your health and safety might I suggest a trip to Zion?" World map updated: -6/Zion. Piercing Trap falls loose from the Twisted Machinery. Map ----- +----------------------------------------------------+ | ?????????????????????????????????????????????????? | | ?????????????????????????????????????????????????? | | ?????????????????????????????????????????????????? | | ?????????????????????????????????????????????????? | | ?????????????????????????????????????????????????? | | ?????????????????????????????????????????????????? | | ?????????????????????????????????????????????????? | | ?????????????????????????????????????????????????? | | ?????????????????????????????????????????????????? | | ?????????????????????????????????????????????????? | | ??????????????????????#??????????????????????????? | | ?????????????????????? ##??????###???????????????? | | ???????????????????## " ###### ????????????????? | | ??????????????????? "" % ????????????????? | | ???????????????????? ?????????????????? | | ?????????????????????# ?????????????????? | | ??????????????????????# #???????????????? ? | | ???????????????????????# ?# ##?????????????? ? | | ??????????????????####?# ## ##???##?????? | | ??????????????????? #?# #### #????? ? | | ??????????????????# " ## #????? #?? | | ??????????????????# "" ## R #??? ## | | ?????????????????????" ## R # #?? | | ???????????????????????# # #### ## #??? | | ????????????# ## &"# ##??# " #??? | | ??????????????# z @ #???# "" #??? | | ???????????????# z "[ "#??## ##"""" ???? | | ???????????????# #### """ " #?# ##???" ????? | | ???????????? ?????## " """" " #??????????? | | ??????????? ?? ????????# ## """ #??????????? | | ????????????????????????#######""## #??????????? | | ???????????????????????????????########??????????? | | ?????????????????????????????????????????????????? | | ?????????????????????????????????????????????????? | | ?????????????????????????????????????????????????? | | ?????????????????????????????????????????????????? | | ?????????????????????????????????????????????????? | | ?????????????????????????????????????????????????? | | ?????????????????????????????????????????????????? | | ?????????????????????????????????????????????????? | | ?????????????????????????????????????????????????? | | ?????????????????????????????????????????????????? | | ?????????????????????????????????????????????????? | | ?????????????????????????????????????????????????? | | ?????????????????????????????????????????????????? | | ?????????????????????????????????????????????????? | | | | | | | | | +----------------------------------------------------+ Best States ------------- Heat Dissipation 39 Energy Generation 14 Energy Capacity 250 Matter Stores 300 Matter Capacity 300 Sight Range 16 Terrain Scan Range 16 Terrain Scan Density 10 Resistance: KI 20 Resistance: TH 20 Resistance: EX 20 Resistance: EM 20 Resistance: I 20 Resistance: S 20 Resistance: P 20 Evasion (%) 50 Recoil Reduction 2 Offensive Hacking 10 Item Schematics ----------------- None Robot Schematics ------------------ None Fabricated ------------ Nothing Alien Tech Used ----------------- None Achievements -------------- None Challenges ------------ None Game ------ Seed ChromaticEnhancedProcessor Manual? 0 Play Time 00:14:58 Cumulative 29.4 hours Start 2025.03.11 @ 23:08:40 End 2025.03.11 @ 23:31:12 Sessions 1 Manual Loads 0 Difficulty Adventurer Special Mode None Game No. 31 Rogue 0 Adventurer 31 Explorer 0 Win Type - Total 0 Types 0/0/0/0/0/0/0/0/0 Lore% 18 Gallery% 27 Achievement% 24 Wizard Run 0 Options --------- Layout 1 ASCII 0 Keyboard 0 Movement Mouse Keybinds 0 Fullscreen 1 Font 24/Smallcaps Map View 50x35 Zoom Use 0% Tactical HUD 1 Map Filters NONE Filters NONE Steam 1 RUN: 7cd97d21-606d-4996-8756-4d3e2edfd88c